bitfinex-derivatives/quotes_BTCF0:USTF0_20251110
["timestamp","ask_amount","ask_price","bid_price","bid_amount"]
[1762741036053,0.58131686,105880.0,105870.0,0.23942543]
[1762741037251,0.53066774,105880.0,105870.0,0.23942543]
[1762741037757,0.53066774,105880.0,105870.0,0.09202543]
[1762741037948,0.58138904,105880.0,105870.0,0.09202543]
[1762741038156,0.53066774,105880.0,105870.0,0.09202543]
[1762741038655,0.1553674,105870.0,105860.0,0.58922274]
[1762741038847,0.15756543,105870.0,105860.0,0.6560439]
[1762741039250,0.15756543,105870.0,105860.0,0.7505302]
[1762741039647,0.15756543,105870.0,105860.0,0.6360439]
[1762741039957,0.15756543,105870.0,105860.0,0.6400439]
[1762741040151,0.15756543,105870.0,105860.0,0.15154141]
[1762741040152,0.56909779,105870.0,105860.0,0.15154141]
[1762741040358,0.1551964,105860.0,105850.0,0.07657627]
[1762741040555,0.1552053,105850.0,105840.0,0.49975398]
[1762741040857,0.06290803,105850.0,105840.0,0.59425818]
[1762741041652,0.0142,105850.0,105840.0,0.68960964]
[1762741041953,0.01434141,105860.0,105850.0,0.0944953]
[1762741042156,0.15753574,105860.0,105850.0,0.3808]
[1762741042954,0.16553574,105860.0,105850.0,0.3618]
[1762741043150,0.16553574,105860.0,105850.0,0.3818]
[1762741043646,0.57709669,105860.0,105850.0,0.001]
[1762741044055,0.59509669,105860.0,105850.0,0.003]
[1762741044258,0.23429669,105860.0,105850.0,0.003]
[1762741045061,0.23429669,105860.0,105850.0,0.08154783]
[1762741046052,0.23429669,105860.0,105850.0,0.19604313]
[1762741046257,0.23429669,105860.0,105850.0,0.55684313]
[1762741046554,0.23429669,105860.0,105850.0,0.67209809]
[1762741046750,0.23429669,105860.0,105850.0,0.69209809]
[1762741047560,0.13981039,105860.0,105850.0,0.69209809]
[1762741048955,0.07910039,105860.0,105850.0,0.69209809]
[1762741049145,0.0142,105870.0,105850.0,0.69209809]
[1762741049146,0.1284601,105880.0,105870.0,0.0944774]
[1762741049453,0.0677401,105880.0,105870.0,1.126208]
[1762741049660,0.2229098,105890.0,105880.0,0.0944685]
[1762741049853,0.13064813,105890.0,105880.0,0.63236416]
[1762741050154,0.10796963,105890.0,105880.0,0.63236416]
[1762741050459,0.06290803,105890.0,105880.0,0.63236416]
[1762741051056,0.08090803,105890.0,105880.0,0.63436416]
[1762741051659,0.17536763,105890.0,105880.0,0.63436416]
[1762741051859,0.08090803,105890.0,105880.0,0.63436416]
[1762741052050,0.08490803,105890.0,105880.0,0.63536416]
[1762741052360,0.08490803,105890.0,105880.0,0.71117828]
[1762741053060,0.08490803,105890.0,105880.0,0.63536416]
[1762741053958,0.08490803,105890.0,105880.0,0.54089566]
[1762741053959,0.17936763,105890.0,105880.0,0.54089566]
[1762741054260,0.17936763,105890.0,105880.0,0.08154783]
[1762741054862,0.17936763,105890.0,105880.0,0.17601633]
[1762741055061,0.17936763,105890.0,105880.0,0.15668193]
[1762741055660,0.03839803,105890.0,105880.0,0.71049826]
[1762741056462,0.03839803,105890.0,105880.0,0.97049826]
[1762741056759,0.03839803,105890.0,105880.0,0.71049826]
[1762741057265,0.06259803,105890.0,105880.0,0.71049826]
[1762741057651,0.08490803,105890.0,105880.0,0.71049826]
[1762741057852,0.17936763,105890.0,105880.0,0.71049826]
[1762741058050,0.17936763,105890.0,105880.0,0.61602976]
[1762741059962,0.17936763,105890.0,105880.0,0.64996507]
[1762741060163,0.17936763,105890.0,105880.0,0.67539734]
[1762741061364,0.17936763,105890.0,105880.0,0.77671699]
[1762741061554,0.17936763,105890.0,105880.0,0.87118549]
[1762741061948,0.17936763,105890.0,105880.0,0.77671699]
[1762741062162,0.17936763,105890.0,105880.0,0.87118549]
[1762741062765,0.17936763,105890.0,105880.0,0.77671699]
[1762741063167,0.17936763,105890.0,105880.0,0.84575322]
[1762741063468,0.08490803,105890.0,105880.0,0.84575322]
[1762741064565,0.17936763,105890.0,105880.0,0.75128472]
[1762741064859,0.17936763,105890.0,105880.0,0.77671699]
[1762741065160,0.17936763,105890.0,105880.0,0.73128472]
[1762741065361,0.17936763,105890.0,105880.0,0.75128472]
[1762741065565,0.17936763,105890.0,105880.0,0.73128472]
[1762741065761,0.17936763,105890.0,105880.0,0.37048472]
[1762741066266,0.17936763,105890.0,105880.0,0.29193689]
[1762741066963,0.17936763,105890.0,105880.0,0.15668193]
[1762741068466,0.54016763,105890.0,105880.0,0.003]
[1762741069761,0.54016763,105890.0,105880.0,0.08154783]
[1762741081472,0.54016763,105890.0,105880.0,0.17601633]
[1762741081676,0.54016763,105890.0,105880.0,0.08154783]
[1762741086678,0.08490803,105890.0,105880.0,0.25456416]
[1762741086883,0.08490803,105890.0,105880.0,0.63682951]
[1762741086884,0.14535347,105890.0,105880.0,0.63682951]
[1762741087083,0.15906347,105890.0,105880.0,0.63682951]
[1762741087277,0.15906347,105890.0,105880.0,0.54236101]
[1762741087677,0.15906347,105890.0,105880.0,0.6172306]
[1762741087879,0.15979614,105890.0,105880.0,0.6172306]
[1762741088081,0.15979614,105890.0,105880.0,0.15788277]
[1762741088082,0.52059614,105890.0,105880.0,0.15788277]
[1762741089186,0.52059614,105890.0,105880.0,0.08301318]
[1762741089782,0.1536385,105880.0,105870.0,8e-08]
[1762741089992,0.1536563,105860.0,105850.0,0.03395595]
[1762741090182,0.15585432,105860.0,105850.0,0.02547014]
[1762741090882,0.87745432,105860.0,105850.0,1.4e-07]
[1762741091784,0.87745432,105860.0,105850.0,0.01000014]
[1762741092587,0.1536653,105850.0,105840.0,0.03420475]
[1762741092887,0.51666332,105850.0,105840.0,0.03420475]
[1762741093891,0.51966332,105850.0,105840.0,0.05620475]
[1762741094584,0.51966332,105850.0,105840.0,0.05693743]
[1762741097191,0.51966332,105850.0,105840.0,0.02298148]
[1762741098897,0.1539532,105830.0,105820.0,0.21995666]
[1762741099095,0.15615122,105830.0,105820.0,0.22068934]
[1762741099883,0.15622184,105830.0,105820.0,0.22068934]
[1762741100084,0.15922184,105830.0,105820.0,0.25768934]
[1762741100795,0.16022184,105830.0,105820.0,0.25768934]
[1762741102194,0.16022184,105830.0,105820.0,0.25468934]
[1762741102890,0.1487141,105830.0,105820.0,0.29180934]
[1762741103994,0.1487141,105830.0,105820.0,0.24091829]
[1762741110303,0.1487141,105830.0,105820.0,0.07185268]
[1762741110600,0.5095141,105830.0,105820.0,0.16396498]
[1762741112908,0.5095141,105830.0,105820.0,0.1602828]
[1762741113394,0.1487141,105830.0,105820.0,0.1602828]
[1762741114201,0.5095141,105830.0,105820.0,0.1602828]
[1762741115198,0.5095141,105830.0,105820.0,0.1231628]
[1762741117701,0.53172719,105830.0,105820.0,0.1231628]
[1762741120997,0.07641399,105830.0,105820.0,0.2629049]
[1762741121199,0.17092709,105830.0,105820.0,0.2629049]
[1762741122004,0.17092709,105830.0,105820.0,0.1683828]
[1762741126603,0.12299483,105830.0,105820.0,0.1776628]
[1762741126811,0.11716561,105840.0,105830.0,0.05673]
[1762741126994,0.14242363,105840.0,105830.0,0.61512292]
[1762741127198,0.15628363,105840.0,105830.0,0.61512292]
[1762741127395,0.15628363,105840.0,105830.0,0.70963602]
[1762741127799,0.15633214,105840.0,105830.0,0.70963602]
[1762741128002,0.15833214,105840.0,105830.0,0.72863602]
[1762741128200,0.15933214,105840.0,105830.0,0.73663602]
[1762741129004,0.15933214,105840.0,105830.0,0.07295268]
[1762741129005,0.52013214,105840.0,105830.0,0.07295268]
[1762741129205,0.52013214,105840.0,105830.0,0.1613828]
[1762741130801,0.06482794,105840.0,105830.0,0.34432612]
[1762741131007,0.06482794,105840.0,105830.0,0.72512612]
[1762741132203,0.06482794,105840.0,105830.0,0.52826588]
[1762741132406,0.06482794,105840.0,105830.0,0.72512612]
[1762741136015,0.15933214,105840.0,105830.0,0.72512612]
[1762741136218,0.15933214,105840.0,105830.0,0.70512612]
[1762741137404,0.06482794,105840.0,105830.0,0.75512612]
[1762741137703,0.15933214,105840.0,105830.0,0.75512612]
[1762741137912,0.15933214,105840.0,105830.0,0.72512612]
[1762741139110,0.15933214,105840.0,105830.0,0.70512612]
[1762741139318,0.15933214,105840.0,105830.0,0.61061292]
[1762741139614,0.52013214,105840.0,105830.0,0.1613828]
[1762741142114,0.06482794,105840.0,105830.0,0.72512602]
[1762741142921,0.15933214,105840.0,105830.0,0.72512602]
[1762741143521,0.06482794,105840.0,105830.0,0.72512602]
[1762741144325,0.15933214,105840.0,105830.0,0.24981292]
[1762741144619,0.52013214,105840.0,105830.0,0.1613828]
[1762741144819,0.15933214,105840.0,105830.0,0.1613828]
[1762741145119,0.15933214,105840.0,105830.0,0.24981292]
[1762741145416,0.06482794,105840.0,105830.0,0.34432602]
[1762741145621,0.15933214,105840.0,105830.0,0.34432602]
[1762741145822,0.11144312,105840.0,105830.0,0.35713602]
[1762741146026,0.13322312,105840.0,105830.0,0.35713602]
[1762741147127,0.13322312,105840.0,105830.0,0.26262292]
[1762741147622,0.50748312,105840.0,105830.0,0.1741928]
[1762741148124,0.50748312,105840.0,105830.0,0.26262292]
[1762741148523,0.50748312,105840.0,105830.0,0.35713602]
[1762741149819,0.50748312,105840.0,105830.0,0.26262292]
[1762741150028,0.14668312,105840.0,105830.0,0.62342292]
[1762741150326,0.14668312,105840.0,105830.0,0.64342292]
[1762741150720,0.14668312,105840.0,105830.0,0.26262292]
[1762741150922,0.03871892,105840.0,105830.0,0.35713602]
[1762741151127,0.13322312,105840.0,105830.0,0.26262292]
[1762741151825,0.13322312,105840.0,105830.0,0.62342292]
[1762741152028,0.13322312,105840.0,105830.0,0.64342292]
[1762741153426,0.13322312,105840.0,105830.0,0.73793612]
[1762741154320,0.13322312,105840.0,105830.0,0.77184061]
[1762741154321,0.00524653,105840.0,105830.0,0.77184061]
[1762741155422,0.09975083,105840.0,105830.0,0.77184061]
[1762741155625,0.14258083,105840.0,105830.0,0.67732741]
[1762741155823,0.15604083,105840.0,105830.0,0.67732741]
[1762741156024,0.14258083,105840.0,105830.0,0.67732741]
[1762741157934,0.14258083,105840.0,105830.0,0.77184051]
[1762741158225,0.14258083,105840.0,105830.0,0.67732741]
[1762741158431,0.15604083,105840.0,105830.0,0.19528729]
[1762741158730,0.51684083,105840.0,105830.0,0.1386528]
[1762741159833,0.51684083,105840.0,105830.0,0.1161628]
[1762741161032,0.51684083,105840.0,105830.0,0.10633711]
[1762741162426,0.51684083,105840.0,105830.0,0.12786711]
[1762741162624,0.15604083,105840.0,105830.0,0.15093711]
[1762741162835,0.51684083,105840.0,105830.0,0.15093711]
[1762741163432,0.14258083,105840.0,105830.0,0.25865021]
[1762741163632,0.09975083,105840.0,105830.0,0.2925547]
[1762741163835,0.00524653,105840.0,105830.0,0.63945021]
[1762741164035,0.00524653,105840.0,105830.0,0.6733547]
[1762741164437,0.00304851,105840.0,105830.0,0.6733547]
[1762741164638,0.09755271,105840.0,105830.0,0.6733547]
[1762741164838,0.00304851,105840.0,105830.0,0.6733547]
[1762741165938,0.14443073,105840.0,105830.0,0.5788416]
[1762741166737,0.14443073,105840.0,105830.0,0.7262416]
[1762741168438,0.14443073,105840.0,105830.0,1.2555616]
[1762741169633,0.14443073,105840.0,105830.0,1.3500747]
[1762741170242,0.14443073,105840.0,105830.0,1.2555616]
[1762741171737,0.14443073,105840.0,105830.0,0.7262416]
[1762741173038,0.14443073,105840.0,105830.0,0.8207547]
[1762741174247,0.14443073,105840.0,105830.0,0.87161144]
[1762741174741,0.04992653,105840.0,105830.0,0.87161144]
[1762741175344,0.14443073,105840.0,105830.0,0.87161144]
[1762741177547,0.04992653,105840.0,105830.0,0.87161144]
[1762741179844,0.00524653,105840.0,105830.0,0.87161144]
[1762741181040,0.14443073,105840.0,105830.0,0.87161144]
[1762741182051,0.14443073,105840.0,105830.0,0.77709834]
[1762741182254,0.04992653,105840.0,105830.0,0.87161154]
[1762741182548,0.04992653,105840.0,105830.0,0.85161154]
[1762741182747,0.14443073,105840.0,105830.0,0.87161154]
[1762741183449,0.04992653,105840.0,105830.0,0.87161154]
[1762741183657,0.02798653,105840.0,105830.0,0.85161154]
[1762741183955,0.02798653,105840.0,105830.0,0.87161154]
[1762741184954,0.00304851,105840.0,105830.0,1.24021597]
[1762741185258,0.00014141,105850.0,105840.0,0.1523042]
[1762741185445,0.00014141,105850.0,105840.0,0.72495023]
[1762741185751,0.05051206,105870.0,105860.0,0.1466263]
[1762741185958,0.00219802,105870.0,105860.0,0.60676341]
[1762741186258,0.05051206,105880.0,105870.0,0.1522774]
[1762741186455,0.16991858,105880.0,105870.0,0.5056527]
[1762741186649,0.05271008,105880.0,105870.0,0.67873453]
[1762741186959,0.09460111,105890.0,105880.0,0.0548]
[1762741187159,0.00233943,105890.0,105880.0,0.68801004]
[1762741187349,0.11953903,105890.0,105880.0,0.59354154]
[1762741188258,0.14147903,105890.0,105880.0,0.59354154]
[1762741188452,0.15147903,105890.0,105880.0,0.59654154]
[1762741188658,0.16147903,105890.0,105880.0,0.59654154]
[1762741189055,0.06701943,105890.0,105880.0,0.76573606]
[1762741189452,0.16147903,105890.0,105880.0,0.59654154]
[1762741190361,0.16147903,105890.0,105880.0,0.51793711]
[1762741191254,0.04507943,105890.0,105880.0,0.59240561]
[1762741191559,0.06795943,105890.0,105880.0,0.69101004]
[1762741191764,0.02014141,105890.0,105880.0,0.69101004]
[1762741191965,0.138361,105900.0,105890.0,0.0132]
[1762741192258,0.04391,105900.0,105890.0,0.61064671]
[1762741192561,0.04391,105900.0,105890.0,0.59836417]
[1762741192761,0.04391,105900.0,105890.0,0.6078265]
[1762741193360,0.06191,105900.0,105890.0,0.6098265]
[1762741193759,0.1563607,105900.0,105890.0,0.5153669]
[1762741193955,0.16855872,105900.0,105890.0,0.5163669]
[1762741194156,0.16855872,105900.0,105890.0,0.12610457]
[1762741194359,0.18152872,105900.0,105890.0,0.12518711]
[1762741195253,0.16855872,105900.0,105890.0,0.51444711]
[1762741195563,0.05122802,105900.0,105890.0,0.51444711]
[1762741195766,0.05122802,105900.0,105890.0,0.60890671]
[1762741196253,0.03019802,105900.0,105890.0,0.60890671]
[1762741196448,0.028,105900.0,105890.0,0.60890671]
[1762741198664,0.1224507,105900.0,105890.0,0.51444711]
[1762741198855,0.1224507,105900.0,105890.0,0.13364711]
[1762741199165,0.18152872,105900.0,105890.0,0.12518711]
[1762741199662,0.16855872,105900.0,105890.0,0.51444711]
[1762741200157,0.18152872,105900.0,105890.0,0.66272711]
[1762741201664,0.18152872,105900.0,105890.0,0.12518711]
[1762741201853,0.08707802,105900.0,105890.0,0.21964671]
[1762741202057,0.18152872,105900.0,105890.0,0.51618711]
[1762741202258,0.18152872,105900.0,105890.0,0.13538711]
[1762741202455,0.18152872,105900.0,105890.0,0.12518711]
[1762741202970,0.18152872,105900.0,105890.0,0.50598711]
[1762741203163,0.18152872,105900.0,105890.0,0.12518711]
[1762741206864,0.08707802,105900.0,105890.0,0.60044671]
[1762741207569,0.18152872,105900.0,105890.0,0.23964671]
[1762741207765,0.18152872,105900.0,105890.0,0.21964671]
[1762741207964,0.18152872,105900.0,105890.0,0.60044671]
[1762741210871,0.08707802,105900.0,105890.0,0.60044671]
[1762741212167,0.07410802,105900.0,105890.0,0.61064671]
[1762741212472,0.07410802,105900.0,105890.0,0.51618711]
[1762741212473,0.16855872,105900.0,105890.0,0.51618711]
[1762741212870,0.18152872,105900.0,105890.0,0.50598711]
[1762741217077,0.18152872,105900.0,105890.0,0.12518711]
[1762741217575,0.54232872,105900.0,105890.0,0.12518711]
[1762741217978,0.18152872,105900.0,105890.0,0.12518711]
[1762741218871,0.54232872,105900.0,105890.0,0.12518711]
[1762741221074,0.54232872,105900.0,105890.0,0.15053183]
[1762741221275,0.54232872,105900.0,105890.0,0.12518711]
[1762741222369,0.54232872,105900.0,105890.0,0.15053183]
[1762741222971,0.54232872,105900.0,105890.0,0.16024657]
[1762741225776,0.54232872,105900.0,105890.0,0.11739657]
[1762741226168,0.54232872,105900.0,105890.0,0.13901657]
[1762741226371,0.54232872,105900.0,105890.0,0.16086657]
[1762741231372,0.18152872,105900.0,105890.0,0.24918574]
[1762741231769,0.08707802,105900.0,105890.0,0.24918574]
[1762741231970,0.16855872,105900.0,105890.0,0.64874551]
[1762741232483,0.16855872,105900.0,105890.0,0.74320511]
[1762741232987,0.07410802,105900.0,105890.0,0.74320511]
[1762741233280,0.07424802,105900.0,105890.0,0.7686906]
[1762741234483,0.07424802,105900.0,105890.0,0.74320511]
[1762741234685,0.16869872,105900.0,105890.0,0.64874551]
[1762741235282,0.16869872,105900.0,105890.0,0.74320511]
[1762741236884,0.16869872,105900.0,105890.0,0.64874551]
[1762741237582,0.52949872,105900.0,105890.0,0.26794551]
[1762741237985,0.52949872,105900.0,105890.0,0.29343386]
[1762741238588,0.16869872,105900.0,105890.0,0.29343386]
[1762741238887,0.16869872,105900.0,105890.0,0.67423386]
[1762741240686,0.18152872,105900.0,105890.0,0.66403386]
[1762741241690,0.18152872,105900.0,105890.0,0.28323386]
[1762741245192,0.18152872,105900.0,105890.0,0.10659552]
[1762741245494,0.18152872,105900.0,105890.0,0.28323386]
[1762741246181,0.18152872,105900.0,105890.0,0.37769346]
[1762741246690,0.07424802,105900.0,105890.0,0.38789346]
[1762741246888,0.08707802,105900.0,105890.0,0.38789346]
[1762741247494,0.07424802,105900.0,105890.0,0.38789346]
[1762741248194,0.06824802,105900.0,105890.0,0.38689346]
[1762741248493,0.05824802,105900.0,105890.0,0.38589346]
[1762741249085,0.012,105900.0,105890.0,0.38589346]
[1762741249281,0.04503141,105910.0,105900.0,0.1450807]
[1762741249493,0.04503141,105910.0,105900.0,0.34793987]
[1762741249985,0.04503141,105910.0,105900.0,0.72873987]
[1762741250294,1e-08,105910.0,105900.0,1.03873987]
[1762741250594,1e-08,105910.0,105900.0,0.76264436]
[1762741250789,1e-08,105910.0,105900.0,0.74264436]
[1762741250992,1e-08,105910.0,105900.0,1.15096353]
[1762741251290,1e-08,105910.0,105900.0,0.92801295]
[1762741251695,0.01100001,105910.0,105900.0,0.92901295]
[1762741252195,0.01100001,105910.0,105900.0,0.87815621]
[1762741252391,1e-08,105910.0,105900.0,0.87715621]
[1762741252599,0.00900001,105910.0,105900.0,0.83406621]
[1762741252792,0.00900001,105910.0,105900.0,0.87715621]
[1762741253495,0.00900001,105910.0,105900.0,0.60606717]
[1762741253694,0.00900001,105910.0,105900.0,1.00715621]
[1762741253889,0.00900001,105910.0,105900.0,1.05801295]
[1762741254285,0.00900001,105910.0,105900.0,0.78801295]
[1762741254692,0.14833181,105910.0,105900.0,0.69356225]
[1762741255100,0.00900001,105910.0,105900.0,0.73715621]
[1762741255401,0.00900001,105910.0,105900.0,1.02715621]
[1762741256197,0.00900001,105910.0,105900.0,0.73715621]
[1762741256399,0.00900001,105910.0,105900.0,0.64270551]
[1762741256801,0.00900001,105910.0,105900.0,0.73715621]
[1762741258602,0.03218001,105910.0,105900.0,0.73715621]
[1762741258809,0.00900001,105910.0,105900.0,0.73715621]
[1762741258998,0.15052983,105910.0,105900.0,0.64270551]
[1762741260410,0.16441983,105910.0,105900.0,0.63516551]
[1762741260606,0.16441983,105910.0,105900.0,0.78256551]
[1762741260806,0.16441983,105910.0,105900.0,0.75410045]
[1762741261006,0.16441983,105910.0,105900.0,0.39330045]
[1762741262609,0.16441983,105910.0,105900.0,0.48775115]
[1762741262610,0.06997803,105910.0,105900.0,0.48775115]
[1762741262904,0.16441983,105910.0,105900.0,0.39330045]
[1762741263119,0.06997803,105910.0,105900.0,0.48775115]
[1762741263719,0.06997803,105910.0,105900.0,0.87701621]
[1762741264312,0.16441973,105910.0,105900.0,0.90245647]
[1762741264718,0.16441973,105910.0,105900.0,0.54165647]
[1762741264917,0.16441973,105910.0,105900.0,0.90245647]
[1762741265113,0.16441973,105910.0,105900.0,0.42720577]
[1762741265321,0.16441973,105910.0,105900.0,0.39330128]
[1762741265521,0.06997803,105910.0,105900.0,0.39330128]
[1762741265721,0.06997803,105910.0,105900.0,0.50775198]
[1762741266115,0.06997803,105910.0,105900.0,0.86855198]
[1762741266422,0.06997803,105910.0,105900.0,0.72115198]
[1762741267022,0.06997803,105910.0,105900.0,0.24590128]
[1762741267523,0.06997803,105910.0,105900.0,0.34035198]
[1762741267912,0.06997803,105910.0,105900.0,0.24590128]
[1762741268113,0.16441973,105910.0,105900.0,0.24590128]
[1762741270018,0.52521973,105910.0,105900.0,0.24590128]
[1762741273218,0.52521973,105910.0,105900.0,0.15758211]
[1762741273417,0.52521973,105910.0,105900.0,0.11449211]
[1762741273918,0.52521973,105910.0,105900.0,0.15758211]
[1762741274623,0.52521973,105910.0,105900.0,0.24590128]
[1762741275224,0.06997803,105910.0,105900.0,0.72115198]
[1762741275518,0.16441973,105910.0,105900.0,0.75505647]
[1762741276024,0.05608803,105910.0,105900.0,0.76316647]
[1762741276422,0.16441983,105910.0,105900.0,0.27980577]
[1762741277012,0.16441983,105910.0,105900.0,0.75505647]
[1762741277211,0.06997803,105910.0,105900.0,0.73772621]
[1762741277422,0.05608803,105910.0,105900.0,0.73772621]
[1762741277624,0.05608803,105910.0,105900.0,0.71772621]
[1762741277822,0.05608803,105910.0,105900.0,0.73772621]
[1762741279425,0.05608803,105910.0,105900.0,0.84772621]
[1762741280225,0.05608803,105910.0,105900.0,0.89858295]
[1762741281328,0.00900001,105910.0,105900.0,0.76858295]
[1762741281530,0.00900001,105910.0,105900.0,1.09858295]
[1762741281731,0.05363001,105910.0,105900.0,0.69413225]
[1762741282727,0.05363001,105910.0,105900.0,0.67413225]
[1762741283028,0.05363001,105910.0,105900.0,0.69413225]
[1762741283232,0.14807161,105910.0,105900.0,0.69413225]
[1762741283528,0.05363001,105910.0,105900.0,0.64327551]
[1762741284035,0.05582803,105910.0,105900.0,0.64327551]
[1762741284228,0.05582803,105910.0,105900.0,0.73772601]
[1762741284827,0.05582803,105910.0,105900.0,0.63955471]
[1762741285030,0.01119803,105910.0,105900.0,0.63955471]
[1762741285345,0.05582803,105910.0,105900.0,0.69041145]
[1762741288030,0.01119803,105910.0,105900.0,0.69041145]
[1762741288237,0.15026963,105910.0,105900.0,0.59596095]
[1762741289123,0.15026963,105910.0,105900.0,0.69041155]
[1762741289529,0.05582803,105910.0,105900.0,0.69041155]
[1762741291031,0.15026963,105910.0,105900.0,0.59596095]
[1762741291234,0.15026963,105910.0,105900.0,0.69041145]
[1762741291732,0.05582803,105910.0,105900.0,0.69041145]
[1762741292033,0.15026963,105910.0,105900.0,0.59596095]
[1762741292234,0.16363963,105910.0,105900.0,0.53699421]
[1762741293134,0.16363963,105910.0,105900.0,0.51699421]
[1762741293433,0.16363963,105910.0,105900.0,0.53699421]
[1762741295639,0.06919803,105910.0,105900.0,0.63144471]
[1762741296039,0.06919803,105910.0,105900.0,0.63955471]
[1762741296235,0.05582803,105910.0,105900.0,0.63955471]
[1762741296541,0.16363963,105910.0,105900.0,0.63955471]
[1762741296747,0.16363963,105910.0,105900.0,0.53699421]
[1762741297528,0.16363963,105910.0,105900.0,0.15619421]
[1762741298128,0.16363963,105910.0,105900.0,0.16039552]
[1762741298129,0.52443963,105910.0,105900.0,0.16039552]
[1762741298334,0.52443963,105910.0,105900.0,0.08192848]
[1762741298535,0.52443963,105910.0,105900.0,0.12649103]
[1762741298730,0.52443963,105910.0,105900.0,0.10466103]
[1762741298939,0.52443963,105910.0,105900.0,0.02619399]
[1762741300942,0.1524505,105900.0,105890.0,5e-08]
[1762741301143,0.1524594,105890.0,105880.0,2.59e-06]
[1762741301336,0.1390983,105880.0,105870.0,0.05085674]
[1762741301531,0.50209632,105880.0,105870.0,0.05085674]
[1762741302533,0.50209632,105880.0,105870.0,0.12322972]
[1762741302734,0.50209642,105880.0,105870.0,0.09561942]
[1762741302943,0.50309642,105880.0,105870.0,0.20108646]
[1762741303137,0.50309642,105880.0,105870.0,0.15022972]
[1762741304443,0.50309642,105880.0,105870.0,0.14122972]
[1762741304739,0.50209642,105880.0,105870.0,0.12622972]
[1762741304945,0.50309642,105880.0,105870.0,0.13622972]
[1762741307749,0.50309642,105880.0,105870.0,0.01373268]
[1762741308144,0.50309642,105880.0,105870.0,0.013]
[1762741309946,0.50309642,105880.0,105870.0,0.14889972]
[1762741312450,0.14229642,105880.0,105870.0,0.14889972]
[1762741312656,0.14229642,105880.0,105870.0,0.29423376]
[1762741312856,0.14229642,105880.0,105870.0,0.19975646]
[1762741317659,0.00319802,105880.0,105870.0,0.29423376]
[1762741317856,0.00319802,105880.0,105870.0,1.0135008]
[1762741317857,0.001,105880.0,105870.0,1.0135008]
[1762741318049,0.11710091,105890.0,105880.0,0.05817]
[1762741318359,0.14223893,105890.0,105880.0,0.13736972]
[1762741318852,0.50303893,105890.0,105880.0,0.13736972]
[1762741319264,0.51137893,105890.0,105880.0,0.13736972]
[1762741319456,0.51137893,105890.0,105880.0,0.02392268]
[1762741319656,0.51137893,105890.0,105880.0,0.00073268]
[1762741319854,0.1470784,105880.0,105870.0,0.003]
[1762741320154,0.51007642,105880.0,105870.0,0.003]
[1762741320557,0.1531173,105870.0,105860.0,0.07429199]
[1762741320758,0.51611532,105870.0,105860.0,0.09685467]
[1762741322559,0.14211532,105870.0,105860.0,0.28295791]
[1762741322757,0.09667532,105870.0,105860.0,0.13761497]
[1762741322954,0.12117532,105870.0,105860.0,0.15961497]
[1762741323156,0.14511532,105870.0,105860.0,0.17161497]
[1762741323661,0.50591532,105870.0,105860.0,0.17161497]
[1762741324749,0.14511532,105870.0,105860.0,0.17161497]
[1762741325657,0.14511532,105870.0,105860.0,0.55241497]
[1762741326258,0.14511532,105870.0,105860.0,0.17161497]
[1762741327055,0.00519802,105870.0,105860.0,0.62690127]
[1762741327257,0.00519802,105870.0,105860.0,0.76690127]
[1762741327764,0.50084541,105890.0,105880.0,0.05817]
[1762741327955,0.50304343,105890.0,105880.0,0.13736972]
[1762741328157,0.04777943,105890.0,105880.0,0.23183812]
[1762741328356,0.09679893,105890.0,105880.0,0.21583676]
[1762741328558,0.11929893,105890.0,105880.0,0.21583676]
[1762741328761,0.14223893,105890.0,105880.0,0.21583676]
[1762741329159,0.14723893,105890.0,105880.0,0.21583676]
[1762741329360,0.14723893,105890.0,105880.0,0.13736972]
[1762741329662,0.03483943,105890.0,105880.0,0.23183812]
[1762741329857,0.10679893,105890.0,105880.0,0.21583676]
[1762741330057,0.12929893,105890.0,105880.0,0.21583676]
[1762741330260,0.14723893,105890.0,105880.0,0.13736972]
[1762741330460,0.14923893,105890.0,105880.0,0.08090268]
[1762741330664,0.51337893,105890.0,105880.0,0.15936972]
[1762741330858,0.51437893,105890.0,105880.0,0.17236972]
[1762741331664,0.51437893,105890.0,105880.0,0.03573268]
[1762741331867,0.51437893,105890.0,105880.0,0.035]
[1762741332054,0.50603893,105890.0,105880.0,0.17236972]
[1762741332565,0.14523893,105890.0,105880.0,0.17236972]
[1762741332760,0.50603893,105890.0,105880.0,0.17236972]
[1762741333071,0.14523893,105890.0,105880.0,0.17236972]
[1762741333960,0.50603893,105890.0,105880.0,0.17236972]
[1762741334167,0.14523893,105890.0,105880.0,0.17236972]
[1762741334569,0.50603893,105890.0,105880.0,0.17236972]
[1762741335168,0.14523893,105890.0,105880.0,0.17236972]
[1762741335569,0.50603893,105890.0,105880.0,0.17236972]
[1762741335870,0.14523893,105890.0,105880.0,0.17236972]
[1762741337370,0.50603893,105890.0,105880.0,0.17236972]
[1762741340573,0.51437893,105890.0,105880.0,0.17236972]
[1762741340769,0.51437893,105890.0,105880.0,0.08002]
[1762741340970,0.56506709,105890.0,105880.0,0.035]
[1762741341276,0.51437893,105890.0,105880.0,0.035]
[1762741342878,0.56506709,105890.0,105880.0,0.02271543]
[1762741343077,0.1332173,105870.0,105860.0,0.13639229]
[1762741343280,0.13541532,105870.0,105860.0,0.23161117]
[1762741344068,0.1551446,105870.0,105860.0,0.23161117]
[1762741344279,0.1551446,105870.0,105860.0,0.13712497]
[1762741344982,0.1571446,105870.0,105860.0,0.1800304]
[1762741345282,0.1581446,105870.0,105860.0,0.1800304]
[1762741345782,0.1581446,105870.0,105860.0,0.1760304]
[1762741345983,0.1571446,105870.0,105860.0,0.1630304]
[1762741346282,0.5189446,105870.0,105860.0,0.1730304]
[1762741352589,0.5189446,105870.0,105860.0,0.1153504]
[1762741353685,0.51897802,105870.0,105860.0,0.1153504]
[1762741355183,0.56966618,105870.0,105860.0,0.02624525]
[1762741355486,0.56966618,105870.0,105860.0,0.11461772]
[1762741356181,0.51897802,105870.0,105860.0,0.11461772]
[1762741360585,0.51897802,105870.0,105860.0,2e-08]
[1762741361573,0.51904746,105870.0,105860.0,2e-08]
[1762741362886,0.1332262,105860.0,105850.0,0.05791141]
[1762741363084,0.51598692,105860.0,105850.0,0.14701656]
[1762741363280,0.52701692,105860.0,105850.0,0.08924656]
[1762741363482,0.52701692,105860.0,105850.0,6e-08]
[1762741363882,0.57770508,105860.0,105850.0,6e-08]
[1762741364085,0.1332441,105840.0,105830.0,0.05777]
[1762741364300,0.51600483,105840.0,105830.0,0.14614247]
[1762741365483,0.52200483,105840.0,105830.0,0.14714247]
[1762741366586,0.52200483,105840.0,105830.0,0.14914247]
[1762741366786,0.55000483,105840.0,105830.0,0.14914247]
[1762741373991,0.53024213,105840.0,105830.0,0.14914247]
[1762741377386,0.07493803,105840.0,105830.0,0.14914247]
[1762741377698,0.034,105840.0,105830.0,0.71282794]
[1762741378903,0.13070213,105840.0,105830.0,0.61831494]
[1762741379093,0.16944213,105840.0,105830.0,0.61831494]
[1762741380301,0.16944213,105840.0,105830.0,0.50994247]
[1762741380601,0.53024213,105840.0,105830.0,0.14914247]
[1762741382096,0.16944213,105840.0,105830.0,0.23751494]